[Event "75th ARM-ch Women 2020"]
[Site "Yerevan"]
[Date "2020.01.12"]
[Round "1.1"]
[White "Hakobyan, Astghik"]
[Black "Avetisyan, Mariam"]
[Result "1-0"]
[ECO "B18"]
[WhiteElo "1917"]
[BlackElo "2163"]
[Annotator "ChessBase"]
[PlyCount "113"]
[EventDate "2020.01.12"]
[EventType "tourn"]
[EventCountry "ARM"]
[SourceTitle "playchess.com"]
[Source "ChessBase"]
[SourceQuality "1"]
[TimeControl "40/5400+30:1800+30"]

1. e4 {[%emt 0:00:00]} c6 {[%emt 0:00:00]} 2. d4 {[%emt 0:00:00]} d5 {[%emt 0:00:00]} 3. Nd2 {[%emt 0:00:00]} dxe4 {[%emt 0:00:00]} 4. Nxe4 {[%emt 0:00:00]} Bf5 {[%emt 0:00:00]} 5. Ng3 {[%emt 0:00:03]} Bg6 {[%emt 0:00:00]} 6. h4 {[%emt 0:00:04]} h6 {[%emt 0:00:00]} 7. Nf3 {[%emt 0:00:05]} e6 {[%emt 0:00:11]} 8. Ne5 {[%emt 0:01:07]} Bh7 {[%emt 0:01:07]} 9. Bd3 {[%emt 0:00:02]} Bxd3 {[%emt 0:00:06]} 10. Qxd3 {[%emt 0:00:07]} Nd7 {[%emt 0:00:21]} 11. f4 {[%emt 0:00:07]} Be7 {[%emt 0:00:16]} 12. Nh5 {[%emt 0:00:24]} Ngf6 {[%emt 0:10:03]} 13. Nxg7+ {[%emt 0:00:13]} Kf8 {[%emt 0:00:04]} 14. Nxe6+ {[%emt 0:00:07]} fxe6 {[%emt 0:00:05]} 15. Bd2 {[%emt 0:00:03]} Qe8 {[%emt 0:15:45]} 16. O-O-O {[%emt 0:10:23]} Rd8 {[%emt 0:51:53]} 17. Qb3 {[%emt 0:24:16]} Nd5 {[%emt 0:08:43]} 18. Qxb7 {[%emt 0:06:40]} c5 {[%emt 0:04:46]} 19. c4 {[%emt 0:10:33]} Nxe5 {[%emt 0:02:36]} 20. fxe5 {[%emt 0:00:55]} Rb8 {[%emt 0:00:34]} 21. Qa6 {[%emt 0:01:37]} Nb6 {[%emt 0:02:15]} 22. d5 {[%emt 0:02:12]} Qa4 {[%emt 0:01:37]} 23. Qxa4 {[%emt 0:00:18]} Nxa4 {[%emt 0:00:03]} 24. b3 {[%emt 0:00:24]} Nb6 {[%emt 0:00:08]} 25. Be3 {[%emt 0:08:28]} Nd7 {[%emt 0:00:39]} 26. dxe6 {[%emt 0:04:26]} Nb6 {[%emt 0:00:02]} 27. Rhf1+ {[%emt 0:04:30]} Ke8 {[%emt 0:00:05]} 28. Rf7 {[%emt 0:00:56]} Rd8 {[%emt 0:00:39]} 29. Rdf1 {[%emt 0:01:44]} Rd3 {[%emt 0:00:58]} 30. R1f3 {[%emt 0:00:41]} Rg8 {[%emt 0:01:03]} 31. Rxe7+ {[%emt 0:02:24]} Kxe7 {[%emt 0:00:28]} 32. Bxc5+ {[%emt 0:00:01]} Kxe6 {[%emt 0:00:19]} 33. Rxd3 {[%emt 0:00:02]} Kxe5 {[%emt 0:00:45]} 34. Bxb6 {[%emt 0:02:37]} axb6 {[%emt 0:00:03]} 35. Rd5+ {[%emt 0:00:09]} Ke4 {[%emt 0:00:13]} 36. Rd6 {[%emt 0:00:52]} Rxg2 {[%emt 0:00:06]} 37. Rxb6 {[%emt 0:00:26]} Rxa2 {[%emt 0:00:13]} 38. Rxh6 {[%emt 0:00:40]} Kd3 {[%emt 0:00:27]} 39. Kb1 {[%emt 0:02:48]} Rh2 {[%emt 0:01:02]} 40. c5 {[%emt 0:00:00]} Kc3 {[%emt 0:00:00]} 41. c6 {[%emt 0:03:59]} Kxb3 {[%emt 0:03:46]} 42. Kc1 {[%emt 0:00:00]} Rc2+ {[%emt 0:01:47]} 43. Kd1 {[%emt 0:00:01]} Rc4 {[%emt 0:00:13]} 44. Kd2 {[%emt 0:00:37]} Kb4 {[%emt 0:00:05]} 45. Kd3 {[%emt 0:01:30]} Kb5 {[%emt 0:00:56]} 46. Rd6 {[%emt 0:02:20]} Rc5 {[%emt 0:06:10]} 47. Ke3 {[%emt 0:02:21]} Kb6 {[%emt 0:03:12]} 48. Kf4 {[%emt 0:00:18]} Kc7 {[%emt 0:04:05]} 49. Re6 {[%emt 0:00:59]} Kd8 {[%emt 0:03:49]} 50. Kg4 {[%emt 0:00:39]} Rc4+ {[%emt 0:00:37]} 51. Kg5 {[%emt 0:00:10]} Rc5+ {[%emt 0:00:13]} 52. Kg6 {[%emt 0:00:11]} Rc1 {[%emt 0:00:18]} 53. h5 {[%emt 0:00:18]} Rg1+ {[%emt 0:00:05]} 54. Kf7 {[%emt 0:00:27]} Rh1 {[%emt 0:00:09]} 55. h6 {[%emt 0:00:04]} Rf1+ {[%emt 0:01:33]} 56. Kg7 {[%emt 0:00:12]} Rg1+ {[%emt 0:03:18]} 57. Rg6 {[%emt 0:00:15]} 1-0

[Event "75th ARM-ch Women 2020"]
[Site "Yerevan"]
[Date "2020.01.12"]
[Round "1.2"]
[White "Khachatryan, Anna"]
[Black "Ghukasyan, Siranush"]
[Result "1/2-1/2"]
[ECO "C45"]
[WhiteElo "2051"]
[BlackElo "2246"]
[Annotator "ChessBase"]
[PlyCount "88"]
[EventDate "2020.01.12"]
[EventType "tourn"]
[EventCountry "ARM"]
[SourceTitle "playchess.com"]
[Source "ChessBase"]
[SourceQuality "1"]
[TimeControl "40/5400+30:1800+30"]

1. e4 {[%emt 0:00:00]} e5 {[%emt 0:00:00]} 2. Nf3 {[%emt 0:00:00]} Nc6 {[%emt 0:00:00]} 3. d4 {[%emt 0:00:00]} exd4 {[%emt 0:00:00]} 4. Nxd4 {[%emt 0:00:00]} Nf6 {[%emt 0:00:00]} 5. Nxc6 {[%emt 0:00:04]} bxc6 {[%emt 0:00:00]} 6. e5 {[%emt 0:00:03]} Qe7 {[%emt 0:00:00]} 7. Qe2 {[%emt 0:00:04]} Nd5 {[%emt 0:00:03]} 8. h4 {[%emt 0:00:10]} d6 {[%emt 0:03:48]} 9. c4 {[%emt 0:00:35]} Nb6 {[%emt 0:01:02]} 10. exd6 {[%emt 0:00:46]} cxd6 {[%emt 0:00:21]} 11. Be3 {[%emt 0:07:54]} Ba6 {[%emt 0:09:28]} 12. Qc2 {[%emt 0:02:38]} Qe6 {[%emt 0:05:35]} 13. Nd2 {[%emt 0:03:58]} Be7 {[%emt 0:07:48]} 14. O-O-O {[%emt 0:16:47]} O-O-O {[%emt 0:34:44]} 15. Bd3 {[%emt 0:28:43]} g6 {[%emt 0:00:25]} 16. Rhe1 {[%emt 0:01:49]} Qd7 {[%emt 0:01:18]} 17. h5 {[%emt 0:03:49]} Kb8 {[%emt 0:13:56]} 18. g3 {[%emt 0:21:12]} Rhe8 {[%emt 0:09:21]} 19. Kb1 {[%emt 0:05:11]} f5 {[%emt 0:05:59]} 20. Nf3 {[%emt 0:02:01]} Bf6 {[%emt 0:01:49]} 21. Bf4 {[%emt 0:03:11]} Rxe1 {[%emt 0:01:15]} 22. Rxe1 {[%emt 0:00:15]} Ka8 {[%emt 0:00:18]} 23. Bg5 {[%emt 0:01:24]} Bxg5 {[%emt 0:02:18]} 24. Nxg5 {[%emt 0:00:01]} Rb8 {[%emt 0:00:19]} 25. h6 {[%emt 0:01:10]} d5 {[%emt 0:01:10]} 26. cxd5 {[%emt 0:00:24]} Bxd3 {[%emt 0:00:17]} 27. Qxd3 {[%emt 0:00:01]} cxd5 {[%emt 0:01:29]} 28. Qd4 {[%emt 0:01:13]} Nc4 {[%emt 0:00:41]} 29. b3 {[%emt 0:00:14]} Na3+ {[%emt 0:00:15]} 30. Kb2 {[%emt 0:00:04]} Nb5 {[%emt 0:00:21]} 31. Qg7 {[%emt 0:00:34]} Qc6 {[%emt 0:00:38]} 32. Rc1 {[%emt 0:00:19]} Qd6 {[%emt 0:00:24]} 33. Kb1 {[%emt 0:01:18]} d4 {[%emt 0:00:14]} 34. Nxh7 {[%emt 0:00:30]} Nc3+ {[%emt 0:00:37]} 35. Ka1 {[%emt 0:00:30]} Qa6 {[%emt 0:00:46]} 36. Rxc3 {[%emt 0:00:25]} dxc3 {[%emt 0:00:02]} 37. Qxc3 {[%emt 0:00:03]} Qf1+ {[%emt 0:00:41]} 38. Kb2 {[%emt 0:00:02]} Qxf2+ {[%emt 0:00:07]} 39. Ka3 {[%emt 0:00:46]} Qb6 {[%emt 0:00:36]} 40. Ng5 {[%emt 0:00:00]} Qa6+ {[%emt 0:00:00]} 41. Kb2 {[%emt 0:01:10]} Rc8 {[%emt 0:14:10]} 42. Qf3+ {[%emt 0:08:19]} Kb8 {[%emt 0:09:14]} 43. Qf4+ {[%emt 0:03:03]} Ka8 {[%emt 0:00:22]} 44. Qf3+ {[%emt 0:00:41]} Kb8 {[%emt 0:02:25]} 1/2-1/2

[Event "75th ARM-ch Women 2020"]
[Site "Yerevan"]
[Date "2020.01.12"]
[Round "1.3"]
[White "Gaboyan, Susanna"]
[Black "Gevorgyan, Maria"]
[Result "1-0"]
[ECO "A49"]
[WhiteElo "2205"]
[BlackElo "2187"]
[Annotator "ChessBase"]
[PlyCount "139"]
[EventDate "2020.01.12"]
[EventType "tourn"]
[EventCountry "ARM"]
[SourceTitle "playchess.com"]
[Source "ChessBase"]
[SourceQuality "1"]
[TimeControl "40/5400+30:1800+30"]

1. d4 {[%emt 0:00:00]} Nf6 {[%emt 0:00:00]} 2. Nf3 {[%emt 0:01:18]} g6 {[%emt 0:00:00]} 3. g3 {[%emt 0:00:06]} Bg7 {[%emt 0:00:00]} 4. Bg2 {[%emt 0:00:05]} O-O {[%emt 0:00:24]} 5. O-O {[%emt 0:00:09]} c5 {[%emt 0:00:04]} 6. d5 {[%emt 0:03:03]} d6 {[%emt 0:02:29]} 7. c4 {[%emt 0:01:05]} b5 {[%emt 0:00:29]} 8. cxb5 {[%emt 0:00:30]} a6 {[%emt 0:00:04]} 9. b6 {[%emt 0:00:07]} Nbd7 {[%emt 0:03:21]} 10. b7 {[%emt 0:00:26]} Bxb7 {[%emt 0:00:06]} 11. Nc3 {[%emt 0:00:08]} Nb6 {[%emt 0:12:50]} 12. e4 {[%emt 0:00:28]} h6 {[%emt 0:01:58]} 13. Re1 {[%emt 0:05:19]} Kh7 {[%emt 0:03:30]} 14. Rb1 {[%emt 0:11:33]} a5 {[%emt 0:21:20]} 15. b3 {[%emt 0:03:58]} e6 {[%emt 0:11:58]} 16. dxe6 {[%emt 0:04:17]} fxe6 {[%emt 0:00:14]} 17. e5 {[%emt 0:06:03]} Nfd5 {[%emt 0:05:17]} 18. Ne4 {[%emt 0:06:52]} dxe5 {[%emt 0:09:36]} 19. Bb2 {[%emt 0:00:24]} Nd7 {[%emt 0:02:06]} 20. h4 {[%emt 0:01:21]} Qe7 {[%emt 0:01:23]} 21. Rc1 {[%emt 0:10:12]} Rf5 {[%emt 0:01:56]} 22. Ba3 {[%emt 0:07:36]} Rc8 {[%emt 0:03:46]} 23. Nfd2 {[%emt 0:08:15]} N5f6 {[%emt 0:07:28]} 24. Nd6 {[%emt 0:11:26]} Qxd6 {[%emt 0:00:03]} 25. Bxb7 {[%emt 0:00:05]} Rf8 {[%emt 0:01:02]} 26. Nc4 {[%emt 0:02:18]} Qc7 {[%emt 0:00:54]} 27. Nd6 {[%emt 0:03:48]} Rxf2 {[%emt 0:01:46]} 28. Kxf2 {[%emt 0:00:02]} Nd5+ {[%emt 0:00:28]} 29. Kg1 {[%emt 0:02:42]} Qxd6 {[%emt 0:00:05]} 30. Qd3 {[%emt 0:01:00]} e4 {[%emt 0:05:54]} 31. Rxe4 {[%emt 0:01:42]} Ne5 {[%emt 0:03:22]} 32. Qa6 {[%emt 0:03:01]} Nf3+ {[%emt 0:00:27]} 33. Kg2 {[%emt 0:00:02]} Nxh4+ {[%emt 0:01:15]} 34. Kh3 {[%emt 0:01:28]} Qb8 {[%emt 0:00:36]} 35. Rxh4 {[%emt 0:02:38]} Rf3 {[%emt 0:00:01]} 36. Rg1 {[%emt 0:00:59]} Qe5 {[%emt 0:00:13]} 37. Bxd5 {[%emt 0:01:06]} exd5 {[%emt 0:01:00]} 38. Bxc5 {[%emt 0:02:09]} g5 {[%emt 0:00:35]} 39. Ra4 {[%emt 0:01:04]} Qf5+ {[%emt 0:00:39]} 40. Kg2 {[%emt 0:00:00]} Rc3 {[%emt 0:00:00]} 41. Bf2 {[%emt 0:10:43]} Qf3+ {[%emt 0:00:36]} 42. Kh2 {[%emt 0:00:10]} Qxf2+ {[%emt 0:05:23]} 43. Rg2 {[%emt 0:00:34]} Qf5 {[%emt 0:05:17]} 44. Qe2 {[%emt 0:01:44]} d4 {[%emt 0:08:19]} 45. Rf2 {[%emt 0:07:17]} Qd5 {[%emt 0:05:03]} 46. Qg4 {[%emt 0:06:02]} Rc5 {[%emt 0:00:07]} 47. Rc4 {[%emt 0:00:55]} Rxc4 {[%emt 0:05:35]} 48. bxc4 {[%emt 0:00:05]} Qxc4 {[%emt 0:00:18]} 49. Qf5+ {[%emt 0:06:13]} Kg8 {[%emt 0:00:05]} 50. Rc2 {[%emt 0:00:25]} Qf7 {[%emt 0:00:04]} 51. Qxa5 {[%emt 0:00:41]} Qf3 {[%emt 0:03:07]} 52. Qb5 {[%emt 0:01:36]} Qe4 {[%emt 0:01:11]} 53. Re2 {[%emt 0:00:27]} Qg6 {[%emt 0:01:02]} 54. Qe8+ {[%emt 0:00:35]} Qxe8 {[%emt 0:00:33]} 55. Rxe8+ {[%emt 0:00:04]} Kf7 {[%emt 0:00:03]} 56. Re2 {[%emt 0:00:35]} Kg6 {[%emt 0:02:04]} 57. g4 {[%emt 0:00:06]} Bf8 {[%emt 0:00:28]} 58. a4 {[%emt 0:00:14]} h5 {[%emt 0:00:21]} 59. gxh5+ {[%emt 0:00:16]} Kxh5 {[%emt 0:00:01]} 60. a5 {[%emt 0:00:17]} d3 {[%emt 0:01:01]} 61. Ra2 {[%emt 0:01:15]} Kg4 {[%emt 0:00:12]} 62. a6 {[%emt 0:00:08]} Bc5 {[%emt 0:00:16]} 63. Rd2 {[%emt 0:00:49]} Kf5 {[%emt 0:01:13]} 64. Rxd3 {[%emt 0:00:07]} Ke6 {[%emt 0:00:11]} 65. Kg3 {[%emt 0:01:01]} Ke7 {[%emt 0:00:12]} 66. Kg4 {[%emt 0:00:04]} Bf2 {[%emt 0:00:12]} 67. Kxg5 {[%emt 0:00:35]} Bc5 {[%emt 0:00:04]} 68. Kf5 {[%emt 0:00:22]} Bf2 {[%emt 0:00:05]} 69. Ke5 {[%emt 0:00:06]} Bb6 {[%emt 0:00:11]} 70. Rb3 {[%emt 0:00:08]} 1-0

[Event "75th ARM-ch Women 2020"]
[Site "Yerevan"]
[Date "2020.01.12"]
[Round "1.4"]
[White "Khachatryan, Veronika"]
[Black "Kursova, Maria"]
[Result "1/2-1/2"]
[ECO "B74"]
[WhiteElo "1905"]
[BlackElo "2241"]
[Annotator "ChessBase"]
[PlyCount "98"]
[EventDate "2020.01.12"]
[EventType "tourn"]
[EventCountry "ARM"]
[SourceTitle "playchess.com"]
[Source "ChessBase"]
[SourceQuality "1"]
[TimeControl "40/5400+30:1800+30"]

1. e4 {[%emt 0:00:00]} c5 {[%emt 0:00:00]} 2. Nf3 {[%emt 0:00:00]} Nc6 {[%emt 0:00:00]} 3. Nc3 {[%emt 0:00:00]} g6 {[%emt 0:02:10]} 4. d4 {[%emt 0:01:30]} cxd4 {[%emt 0:00:08]} 5. Nxd4 {[%emt 0:00:06]} Bg7 {[%emt 0:00:10]} 6. Be3 {[%emt 0:00:07]} d6 {[%emt 0:04:20]} 7. Be2 {[%emt 0:05:50]} Nf6 {[%emt 0:01:55]} 8. Nb3 {[%emt 0:03:16]} O-O {[%emt 0:25:58]} 9. O-O {[%emt 0:00:12]} Rb8 {[%emt 0:07:46]} 10. a4 {[%emt 0:14:46]} b6 {[%emt 0:01:34]} 11. f4 {[%emt 0:05:54]} Bb7 {[%emt 0:19:27]} 12. Bf3 {[%emt 0:02:08]} Nd7 {[%emt 0:04:55]} 13. Rf2 {[%emt 0:16:25]} Nc5 {[%emt 0:04:50]} 14. Rd2 {[%emt 0:05:47]} Nxb3 {[%emt 0:00:57]} 15. cxb3 {[%emt 0:00:02]} Qe8 {[%emt 0:00:51]} 16. Nb5 {[%emt 0:03:25]} Rc8 {[%emt 0:04:54]} 17. Bg4 {[%emt 0:23:24]} f5 {[%emt 0:00:19]} 18. exf5 {[%emt 0:00:17]} gxf5 {[%emt 0:00:02]} 19. Bh5 {[%emt 0:00:33]} Qd7 {[%emt 0:01:13]} 20. Bf2 {[%emt 0:02:49]} Kh8 {[%emt 0:05:36]} 21. Rc1 {[%emt 0:07:46]} Bf6 {[%emt 0:04:33]} 22. Bf3 {[%emt 0:03:30]} Nb4 {[%emt 0:06:04]} 23. Rc4 {[%emt 0:00:28]} Bxf3 {[%emt 0:00:33]} 24. Qxf3 {[%emt 0:00:05]} Rxc4 {[%emt 0:01:48]} 25. bxc4 {[%emt 0:00:02]} Rc8 {[%emt 0:01:11]} 26. b3 {[%emt 0:01:06]} Nc6 {[%emt 0:00:43]} 27. h3 {[%emt 0:01:04]} Qe6 {[%emt 0:00:39]} 28. Re2 {[%emt 0:01:09]} Qf7 {[%emt 0:00:05]} 29. Qd3 {[%emt 0:00:57]} Bg7 {[%emt 0:00:25]} 30. Nc3 {[%emt 0:01:27]} Kg8 {[%emt 0:01:09]} 31. Nd5 {[%emt 0:00:36]} e6 {[%emt 0:00:34]} 32. Nc3 {[%emt 0:00:19]} Rd8 {[%emt 0:00:08]} 33. Nb5 {[%emt 0:00:55]} d5 {[%emt 0:00:50]} 34. cxd5 {[%emt 0:00:32]} Rxd5 {[%emt 0:00:06]} 35. Qc4 {[%emt 0:00:21]} Qd7 {[%emt 0:00:29]} 36. Rc2 {[%emt 0:00:38]} Ne7 {[%emt 0:00:20]} 37. Kh2 {[%emt 0:00:26]} Kf7 {[%emt 0:00:41]} 38. Qe2 {[%emt 0:00:31]} Nc6 {[%emt 0:00:59]} 39. Qh5+ {[%emt 0:00:35]} Kg8 {[%emt 0:00:09]} 40. Rc4 {[%emt 0:00:00]} a6 {[%emt 0:00:00]} 41. Na3 {[%emt 0:18:09]} b5 {[%emt 0:10:27]} 42. axb5 {[%emt 0:00:26]} axb5 {[%emt 0:00:03]} 43. Rc5 {[%emt 0:01:18]} Rxc5 {[%emt 0:08:46]} 44. Bxc5 {[%emt 0:00:02]} Nd4 {[%emt 0:03:12]} 45. Qd1 {[%emt 0:07:39]} Qc7 {[%emt 0:09:26]} 46. Bxd4 {[%emt 0:00:10]} Qxf4+ {[%emt 0:00:04]} 47. g3 {[%emt 0:00:13]} Qxd4 {[%emt 0:00:04]} 48. Qxd4 {[%emt 0:00:03]} Bxd4 {[%emt 0:00:04]} 49. Nxb5 {[%emt 0:00:05]} Bc5 {[%emt 0:00:21]} 1/2-1/2

[Event "75th ARM-ch Women 2020"]
[Site "Yerevan"]
[Date "2020.01.12"]
[Round "1.5"]
[White "Ambarjyan, Tereza"]
[Black "Arakelyan, Nare"]
[Result "0-1"]
[ECO "E91"]
[WhiteElo "1514"]
[BlackElo "1913"]
[Annotator "NA"]
[PlyCount "104"]
[EventDate "2020.01.12"]
[EventType "tourn"]
[EventCountry "ARM"]
[SourceTitle "playchess.com"]
[Source "ChessBase"]
[SourceQuality "1"]
[TimeControl "40/5400+30:1800+30"]

1. d4 {[%emt 0:00:00]} Nf6 {[%emt 0:00:00]} 2. c4 {[%emt 0:00:00]} g6 {[%emt 0:00:17]} 3. Nc3 {[%emt 0:00:03]} Bg7 {[%emt 0:00:05]} 4. e4 {[%emt 0:00:07]} d6 {[%emt 0:00:02]} 5. Nf3 {[%emt 0:01:06]} O-O {[%emt 0:00:13]} 6. Be2 {[%emt 0:01:17]} Nc6 {[%emt 0:00:22]} 7. d5 {[%emt 0:05:29]} Nb8 {[%emt 0:01:56]} 8. O-O {[%emt 0:03:15]} Nbd7 {[%emt 0:00:34]} 9. Be3 {[%emt 0:13:10]} Nc5 {[%emt 0:09:28]} 10. Qc2 {[%emt 0:12:27]} a5 {[%emt 0:00:37]} 11. a3 {[%emt 0:06:31]} a4 {[%emt 0:01:01]} 12. Nd2 {[%emt 0:00:32]} Bd7 {[%emt 0:02:53]} 13. f4 {[%emt 0:04:29]} e6 {[%emt 0:04:39]} 14. e5 {[%emt 0:03:08]} Ne8 {[%emt 0:01:40]} 15. Bxc5 {[%emt 0:01:07]} dxc5 {[%emt 0:00:06]} 16. Nf3 {[%emt 0:02:50]} Qe7 {[%emt 0:04:23]} 17. Rad1 {[%emt 0:00:35]} f6 {[%emt 0:01:16]} 18. Bd3 {[%emt 0:10:23]} fxe5 {[%emt 0:03:10]} 19. Nxe5 {[%emt 0:05:59]} Bxe5 {[%emt 0:02:19]} 20. fxe5 {[%emt 0:00:06]} exd5 {[%emt 0:00:11]} 21. Rxf8+ {[%emt 0:02:44]} Kxf8 {[%emt 0:00:06]} 22. Rf1+ {[%emt 0:00:05]} Kg8 {[%emt 0:06:08]} 23. Qf2 {[%emt 0:03:04]} d4 {[%emt 0:01:45]} 24. Ne4 {[%emt 0:03:48]} Bf5 {[%emt 0:03:09]} 25. Qg3 {[%emt 0:07:48]} Kh8 {[%emt 0:01:09]} 26. Ng5 {[%emt 0:07:58]} Ng7 {[%emt 0:04:36]} 27. Be2 {[%emt 0:04:49]} h6 {[%emt 0:01:18]} 28. Nf3 {[%emt 0:00:18]} Nh5 {[%emt 0:03:33]} 29. Qe1 {[%emt 0:00:15]} Nf4 {[%emt 0:00:28]} 30. Qd2 {[%emt 0:00:26]} Nxe2+ {[%emt 0:06:23]} 31. Qxe2 {[%emt 0:00:05]} Qe6 {[%emt 0:00:13]} 32. Nh4 {[%emt 0:01:05]} Ra6 {[%emt 0:07:21]} 33. Nxf5 {[%emt 0:00:41]} gxf5 {[%emt 0:00:03]} 34. Qf3 {[%emt 0:00:32]} Rb6 {[%emt 0:01:23]} 35. Qh5 {[%emt 0:00:42]} Qxe5 {[%emt 0:04:34]} 36. h3 {[%emt 0:00:32]} Rf6 {[%emt 0:02:57]} 37. Qh4 {[%emt 0:00:06]} Re6 {[%emt 0:02:12]} 38. Qd8+ {[%emt 0:00:40]} Kg7 {[%emt 0:00:54]} 39. Qd7+ {[%emt 0:00:04]} Kg6 {[%emt 0:01:11]} 40. Qc8 {[%emt 0:00:00]} Re8 {[%emt 0:00:00]} 41. Qxb7 {[%emt 0:01:22]} d3 {[%emt 0:17:59]} 42. Qc6+ {[%emt 0:01:22]} Re6 {[%emt 0:02:12]} 43. Qa8 {[%emt 0:15:16]} Kg7 {[%emt 0:01:48]} 44. Qxa4 {[%emt 0:01:30]} Qd4+ {[%emt 0:00:10]} 45. Kh2 {[%emt 0:02:02]} d2 {[%emt 0:01:33]} 46. Qd1 {[%emt 0:05:36]} Qe5+ {[%emt 0:01:10]} 47. Kg1 {[%emt 0:03:36]} Qe1 {[%emt 0:00:57]} 48. Kh2 {[%emt 0:00:24]} Qxf1 {[%emt 0:00:23]} 49. Qxf1 {[%emt 0:00:06]} Re1 {[%emt 0:00:03]} 50. Qxf5 {[%emt 0:01:02]} d1=Q {[%emt 0:00:04]} 51. Kg3 {[%emt 0:02:25]} Re3+ {[%emt 0:00:46]} 52. Kh2 {[%emt 0:00:40]} Qd6+ {[%emt 0:00:06]} 0-1

[Event "75th ARM-ch Women 2020"]
[Site "Yerevan"]
[Date "2020.01.13"]
[Round "2.2"]
[White "Hakobyan, Astghik"]
[Black "Khachatryan, Anna"]
[Result "0-1"]
[ECO "B36"]
[WhiteElo "1917"]
[BlackElo "2051"]
[Annotator "NA RC"]
[PlyCount "84"]
[EventDate "2020.01.12"]
[EventType "tourn"]
[EventCountry "ARM"]
[SourceTitle "playchess.com"]
[Source "ChessBase"]
[SourceQuality "1"]
[TimeControl "40/5400+30:1800+30"]

{[%evp 8,84,43,32767,32767,32767,32767,32767,32767,-16,-20,-23,-25,-18,-10,-30,-34,-32,-41,-41,4,25,9,0,17,12,43,33,57,41,42,-3,47,54,67,52,42,29,43,0,-6,-14,0,-22,-16,-34,0,-24,17,-8,-12,-35,-22,-19,29,-47,0,-37,0,-68,0,-66,-38,-55,-54,-152,32767,32767,32767,32767,32767,32767,0,-42,-124,-121,-132,-2232,-29983]} 1. e4 {[%emt 0:00:00]} c5 {[%emt 0:00:00]} 2. Nf3 {[%emt 0:00:00]} Nc6 {[%emt 0:00:00]} 3. d4 {[%emt 0:00:00]} cxd4 {[%emt 0:00:00]} 4. Nxd4 {[%emt 0:00:00]} g6 {[%emt 0:00:00]} 5. c4 {[%emt 0:00:03]} Nf6 {[%emt 0:00:00]} 6. Nc3 {[%emt 0:00:08]} d6 {[%emt 0:00:00]} 7. Be3 {[%emt 0:00:26]} Ng4 {[%emt 0:00:35] B36: Sicilian: Maroczy Bind: Gurgenidze System} (7... Bg7 8. Be2 O-O 9. O-O Bd7 10. Qd2 Nxd4 11. Bxd4 {½-½ (11) Pancevski,F (2469)-Stojanovski,D (2442) Kraljevo 2014}) 8. Nc2 {[%emt 0:33:28]} Nxe3 {[%emt 0:06:46]} 9. Nxe3 {[%emt 0:00:02]} Bg7 {[%emt 0:03:37]} 10. Qd2 {[%emt 0:01:27]} O-O {[%emt 0:01:26]} 11. Be2 {[%emt 0:02:04]} Nd4 {[%emt 0:09:51]} 12. Bd3 $146 {[%emt 0:02:21]} ({Predecessor:} 12. O-O Bd7 13. Rfd1 Nxe2+ 14. Nxe2 Bc6 15. Ng3 h5 {½-½ (46) Sekulovic,A (2123)-Nesic,D (2068) Belgrade 2018}) 12... Bd7 {[%emt 0:05:07]} 13. O-O {[%emt 0:00:55]} f5 {[%emt 0:05:13]} 14. exf5 {[%emt 0:06:37]} gxf5 {[%emt 0:00:29]} 15. Nc2 {[%emt 0:05:38]} Nxc2 {[%emt 0:04:43]} 16. Bxc2 {[%emt 0:07:35]} Bc6 {[%emt 0:07:19]} 17. Rad1 {[%emt 0:03:44]} Qe8 {[%emt 0:30:26]} 18. Nd5 {[%emt 0:08:51]} e6 {[%emt 0:03:11]} 19. Rfe1 {[%emt 0:03:41]} Qf7 {[%emt 0:00:09]} (19... Bxd5 $5 20. cxd5 e5 $11) 20. Nb4 {[%emt 0:01:24]} Rad8 {[%emt 0:02:10]} 21. Nxc6 {[%emt 0:03:18]} bxc6 {[%emt 0:00:01]} 22. Ba4 {[%emt 0:00:14]} c5 {[%emt 0:00:38]} 23. Qe2 {[%emt 0:00:49]} Be5 {[%emt 0:02:23]} 24. Bc6 {[%emt 0:02:47]} Qf6 {[%emt 0:02:12]} 25. b3 {[%emt 0:03:32]} Qh6 {[%emt 0:00:13]} 26. h3 {[%emt 0:01:27]} Qf4 {[%emt 0:03:07]} 27. Qf3 {[%emt 0:00:22]} Qh6 {[%emt 0:04:57]} 28. Rd3 {[%emt 0:01:32]} Kh8 {[%emt 0:01:50]} 29. Qe2 {[%emt 0:05:12]} Rf6 {[%emt 0:02:30]} 30. Re3 {[%emt 0:02:57]} Rg8 {[%emt 0:01:14]} 31. Kf1 {[%emt 0:00:09]} (31. Rxe5 $14 dxe5 32. Qxe5) 31... Qh4 {[%emt 0:01:06]} 32. Qc2 {[%emt 0:01:46]} Rgg6 {[%emt 0:01:51]} 33. Be8 {[%emt 0:00:57]} Rg8 {[%emt 0:00:14]} (33... Rg7 $15) 34. Bc6 {[%emt 0:00:07]} Rfg6 {[%emt 0:00:39]} 35. a3 {[%emt 0:01:55]} Qh6 {[%emt 0:00:03]} 36. b4 {[%emt 0:01:46]} ({White should play} 36. Rxe5 $15 dxe5 37. Qc3) 36... Bd4 {[%emt 0:01:00]} 37. Rb3 {[%emt 0:00:35]} e5 {[%emt 0:01:14]} 38. Bd5 {[%emt 0:00:25]} Rf8 {[%emt 0:00:11]} 39. bxc5 {[%emt 0:00:40]} dxc5 {[%emt 0:00:44]} 40. Rb7 {[%emt 0:00:00] [#]} Qf4 $1 {[%emt 0:00:00]} 41. Reb1 {[%emt 0:16:38]} e4 {[%emt 0:05:52]} 42. Rb8 $19 {[%emt 0:00:07]} (42. Qe2 $15) 42... Rxb8 {[%emt 0:00:12]} 0-1